Cogmind - Beta 12 @@@ ROGUE MODE // 2024.02.17 @ 19:25:50 Player: ToasterKoishi Result: Destroyed by D-53 Grenadier with Mini Grenade Launcher Performance ------------- Evolutions (0) 0 Regions Visited (2) 400 Robots Destroyed (16) 80 Value Destroyed (383) 383 Prototype IDs (2) 40 Alien Tech Used (0) 0 Bonus (0) 0 TOTAL SCORE: 903 Bonus ------- None Cogmind --------- Core Integrity 0/250 Matter 271/300 Energy 85/100 System Corruption 0% Temperature Cool (0) Movement Rolling (110) Ox2 Location -10/Mines Parts ------- > --- POWER (1) -------- (None) > --- PROPULSION (2) --- Wheel > --- UTILITY (2) ------ Large Storage Unit > --- WEAPON (2) ------- Light Assault Rifle > --- INVENTORY (15) --- Ion Engine Light Ion Engine Compact Wheel Large Storage Unit High-capacity Matter Pod (30) Improved Terrain Scanner Seismic Detector Light Armor Plating Light Assault Rifle Peak State ------------ > --- POWER ------------ Ion Engine > --- PROPULSION ------- Light Treads Light Treads > --- UTILITY ---------- Large Storage Unit Core Shielding > --- WEAPON ----------- Assault Rifle Light Assault Rifle > --- INVENTORY -------- Light Ion Engine Light Ion Engine Small Storage Unit Small Storage Unit Small Matter Pod Medium Matter Pod Improved Terrain Scanner Seismic Detector [Rating: 8] Favorites ----------- Power Ion Engine Engine Ion Engine Propulsion Light Treads Treads Light Treads Wheel Wheel Utility Core Shielding Device Seismic Detector Storage Large Storage Unit Protection Core Shielding Weapon Assault Rifle Energy Gun Medium Laser Ballistic Gun Assault Rifle Build | -11 -10 -10 ------- Run | Jun Mat Min Slots Evolved . | . . . Power . | . . . Propulsion . | . . . Utility . | . . . Weapon . | . . . Parts Attached 23 | 7 13 3 Power 3 | 1 2 . Engine 3 | 1 2 . Core . | . . . Reactor . | . . . Propulsion 8 | 2 5 1 Treads 4 | 2 2 . Leg . | . . . Wheel 4 | . 3 1 Hover . | . . . Flight . | . . . Utility 4 | 2 2 . Device 1 | 1 . . Storage 2 | 1 1 . Processor . | . . . Hackware . | . . . Protection 1 | . 1 . Artifact . | . . . Weapon 8 | 2 4 2 Energy Gun 1 | . 1 . Energy Cannon . | . . . Ballistic Gun 7 | 2 3 2 Ballistic Cannon . | . . . Launcher . | . . . Special Weapon . | . . . Impact Weapon . | . . . Slashing Weapon . | . . . Piercing Weapon . | . . . Special Melee Weapon . | . . . Unidentified Prototypes . | . . . Parts Lost 9 | . 2 7 Power 1 | . . 1 Propulsion 3 | . 1 2 Utility 1 | . . 1 Weapon 4 | . 1 3 Highest Loss Streak 7 | . 2 7 To Critical Strikes . | . . . Average Slot Usage (%) 96 | . 95 98 Engine 13 | . 14 12 Treads 14 | . 18 . Wheel 11 | . 7 27 Storage 14 | . 14 14 Protection 13 | . 12 14 Ballistic Gun 25 | . 25 28 Naked Turns . | . . . Heaviest Build 30 | 12 30 30 Greatest Support 40 | 40 40 20 Greatest Overweight (x) 9 | 1 9 2 Average Overweight (x) . | . . 1 Largest Inventory Capacity 15 | 8 15 15 Average Capacity 12 | 7 12 15 Most Carried 12 | 4 12 12 Average Carried 7 | 2 7 11 Final Capacity 15 | 8 15 15 Final Carried 12 | 4 12 9 Class Distribution -------------------- 100% | Mutant Dominant Class ---------------- Mutant | -10/Materials Mutant | -10/Mines Resources | -11 -10 -10 ----------- Run | Jun Mat Min Matter Collected 717 | 376 341 . Remotely . | . . . Salvage Created 544 | 109 435 . Parts 29 | 7 22 . Haulers Intercepted . | . . . Recyclers Shooed . | . . . Parts Field Recycled . | . . . Retrieved Matter . | . . . Parts Self-Destructed . | . . . Prevented . | . . . Kills | -11 -10 -10 ------- Run | Jun Mat Min Combat Hostiles Destroyed 12 | . 12 . Guns 12 | . 12 . Classes Destroyed 5 | 3 2 . Worker 1 | 1 . . Tunneler 2 | 2 . . Recycler 1 | 1 . . Swarmer 3 | . 3 . Grunt 9 | . 9 . Best Kill Streak 4 | 1 4 . Combat Bots Only 4 | . 4 . Max Kills in Single Turn 1 | 1 1 . Gunslinging . | . . . Exploded . | . . . Melee . | . . . Uniques/NPCs Destroyed . | . . . Combat | -11 -10 -10 -------- Run | Jun Mat Min Damage Taken 1297 | . 548 749 Core 255 | . 89 166 Absorbed by Shields . | . . . Redirected to Shielding 52 | . 18 34 Core Remaining (%) 100 | 100 . . Volleys Fired 61 | 14 44 3 Largest 2 | 2 2 2 Hottest 40 | 40 40 40 Shots Fired 111 | 28 77 6 Gun 111 | 28 77 6 Cannon . | . . . Launcher . | . . . Special . | . . . Kinetic 111 | 28 77 6 Thermal . | . . . Explosive . | . . . Electromagnetic . | . . . Robot Hit Streak 9 | 6 9 2 Robot Miss Streak 3 | 3 2 2 Penetration Max . | . . . Secondary Targets 1 | . 1 . Max Gunslinging Chain 1 | . 1 . Shots Hit Robots 79 | 20 57 2 Core Hits 34 | 7 26 1 Critical Kills . | . . . Critical Parts Destroyed . | . . . Critical Strikes . | . . . Melee Attacks . | . . . Impact . | . . . Slashing . | . . . Piercing . | . . . Sneak Attacks . | . . . Combat Hostiles . | . . . Follow-up Attacks . | . . . Damage Inflicted 841 | 226 594 21 Guns 841 | 226 594 21 Cannons . | . . . Explosions . | . . . Melee . | . . . Ramming . | . . . Kinetic 841 | 226 594 21 Thermal . | . . . Explosive . | . . . Electromagnetic . | . . . Impact . | . . . Slashing . | . . . Piercing . | . . . Highest Corruption . | . . . Average Corruption . | . . . Corruption Purged . | . . . Corruption Blocked . | . . . Overload Shots . | . . . Overflow Damage . | . . . Projectiles . | . . . Explosions . | . . . Melee . | . . . Knockbacks . | . . . Impact . | . . . Kinetic . | . . . Secondary . | . . . Self-Inflicted Damage . | . . . Shots . | . . . Rammed . | . . . Targets Rammed . | . . . Kicked . | . . . Crushed . | . . . Highest Temperature 34 | . 34 1 Average Temperature 10 | . 10 1 Received Heat Transfer 249 | . 249 . Siege Activations . | . . . Robots Corrupted . | . . . Combat Hostiles . | . . . Parts Fried . | . . . Impact Corruptions . | . . . Robots Melted . | . . . Combat Hostiles . | . . . Parts Melted . | . . . Heat Transferred . | . . . Parts Sabotaged . | . . . Parts Stolen . | . . . Parts Stripped . | . . . Power Chain Reactions . | . . . Missiles Intercepted . | . . . Alert | -11 -10 -10 ------- Run | Jun Mat Min Peak Influence 219 | 20 219 31 Initial 31 | . 13 31 Average 77 | 8 102 28 Maximum Alert Level 1 | . 1 . Low Security (%) 93 | 100 90 100 Level 1 6 | . 9 . Level 2 . | . . . Level 3 . | . . . Level 4 . | . . . Level 5 . | . . . High Security . | . . . Max Security . | . . . Squads Dispatched 4 | . 4 . Investigation 2 | . 2 . Extermination . | . . . Reinforcement 2 | . 2 . Assault . | . . . Garrison . | . . . Intercept . | . . . Searches Triggered . | . . . Construction Impeded . | . . . Haulers Reinforced . | . . . Active Scanning Responses . | . . . Cargo Convoy Interrupts . | . . . Stealth | -11 -10 -10 --------- Run | Jun Mat Min Distress Signals 3 | . 3 . Communications Jammed . | . . . Distress Signals . | . . . Times Spotted 25 | . 23 2 Peak Tracking Total 4 | . 4 2 Tactical Retreats . | . . . Traps | -11 -10 -10 ------- Run | Jun Mat Min Traps Triggered 2 | . 2 . Indirectly . | . . . Trap Hack Attempts . | . . . Triggered . | . . . Disarmed . | . . . Reprogrammed . | . . . Reused . | . . . Traps Extracted . | . . . Installed . | . . . Triggered . | . . . Machines | -11 -10 -10 ---------- Run | Jun Mat Min Machines Disabled . | . . . Max in Single Turn . | . . . Machines Repaired . | . . . Machines Sabotaged . | . . . Overloaded Fab Kills . | . . . Hacking | -11 -10 -10 --------- Run | Jun Mat Min Machines Accessed 6 | . 6 . Terminals 5 | . 5 . Fabricators . | . . . Repair Stations . | . . . Recycling Units 1 | . 1 . Scanalyzers . | . . . Garrison Access . | . . . Total Hacks 17 | . 17 . Successful 10 | . 10 . Failed 7 | . 7 . Catastrophic 2 | . 2 . Database Lockouts . | . . . Manual 4 | . 4 . Terminals 15 | . 15 . Fabricators . | . . . Repair Stations . | . . . Recycling Units 2 | . 2 . Scanalyzers . | . . . Garrison Access . | . . . Terminal Hacks 9 | . 9 . Record 6 | . 6 . Prototype ID Bank 1 | . 1 . Terminal Index 1 | . 1 . Dispatch Records 1 | . 1 . Fabricator Hacks . | . . . Repair Station Hacks . | . . . Recycling Unit Hacks . | . . . Scanalyzer . | . . . Garrison Access Hacks . | . . . Unauthorized Hacks 1 | . 1 . Terminals . | . . . Fabricators . | . . . Repair Stations . | . . . Recycling Units 1 | . 1 . Tunnel 1 | . 1 . Scanalyzers . | . . . Garrison Access . | . . . Data Cores Recovered . | . . . Used . | . . . Hacking Detections 6 | . 6 . Full Trace Events . | . . . Feedback Events . | . . . Feedback Blocked . | . . . Robot Schematics Acquired . | . . . Robots Built . | . . . Authchips . | . . . Time . | . . . Total Robot Build Rating . | . . . Part Schematics Acquired . | . . . Parts Built . | . . . Authchips . | . . . Time . | . . . Total Part Build Rating . | . . . Parts Repaired . | . . . Time . | . . . Parts Recycled . | . . . Recycled Matter . | . . . Retrieved Matter . | . . . Retrieved Components . | . . . Parts Scanalyzed . | . . . Part Schematics Acquired . | . . . Parts Damaged . | . . . Bothacking | -11 -10 -10 ------------ Run | Jun Mat Min Used RIF Installer . | . . . Robots Hacked . | . . . Non-combat . | . . . Combat . | . . . Robot Hacks Applied . | . . . Relay Couplers Released . | . . . Fabnet Peak Effective % . | . . . Robots Rewired . | . . . Allies Hacked . | . . . Hacks Repelled . | . . . Allies | -11 -10 -10 -------- Run | Jun Mat Min Total Allies . | . . . Largest Group . | . . . Highest-Rated Group . | . . . Highest-Rated Ally . | . . . Total Orders . | . . . Ally Attacks . | . . . Total Damage . | . . . Kills . | . . . Allies Corrupted . | . . . Allies Melted . | . . . Intel | -11 -10 -10 ------- Run | Jun Mat Min Robot Analysis Total . | . . . Derelict Logs Recovered 2 | . . 2 Drone Launches . | . . . Drone Recoveries . | . . . Exploration | -11 -10 -10 ------------- Run | Jun Mat Min Turns Passed 1297 | 169 899 229 Spaces Moved 795 | 75 494 226 Core 6 | 5 1 . Treads 349 | 70 279 . Legs . | . . . Wheels 440 | . 214 226 Hover . | . . . Flight . | . . . Fastest Speed 50 | 50 95 95 Average Speed 128 | 154 140 95 Slowest Speed 500 | 160 500 110 Overloaded Moves . | . . . Propulsion Burnouts . | . . . Robots Hopped . | . . . Cave-ins Triggered . | . . . Exploration Rate (%) 53 | 6 96 57 Regions Visited 2 Branch Regions 1 Pre-discovered Areas 2 | . 1 1 Known Exits Taken . | . . . Unknown Exits Taken 2 | 1 1 . Scrap Searched . | . . . Spaces Dug . | . . . Terrain Destroyed . | . . . Melee . | . . . Projectile . | . . . AOE . | . . . Terrain Rammed . | . . . Walls Destroyed . | . . . Machines Disabled . | . . . Actions | -11 -10 -10 --------- Run | Jun Mat Min Total 960 | 99 628 233 Wait 64 | . 63 1 Move 793 | 74 493 226 Hop . | . . . Pick Up 11 | 4 7 . Fast Attach 15 | 7 8 . Attach 3 | . . 3 Detach 1 | . 1 . Swap 5 | . 5 . Drop 7 | . 7 . Fire 61 | 14 44 3 Melee . | . . . Ram . | . . . Kick . | . . . Crush . | . . . Escape Stasis . | . . . Rewire . | . . . Trap . | . . . Miscellaneous . | . . . Route ------- -11/Junkyard -10/Materials (discovered 5 exits: [*Mat x3] / [*Min x2]) -10/Mines (discovered 1 exit: [*Mat]) History --------- Turn | Location | Event 30 | -11/Junkyard | Discovered new exit (range 16) 170 | -11/Junkyard | Entered Materials 304 | -10/Materials | Build established: Mutant 383 | -10/Materials | Discovered new exit (range 16) 568 | -10/Materials | Discovered new exit (range 4) 812 | -10/Materials | Discovered new exit (range 16) 964 | -10/Materials | Discovered new exit (range 16) 1021 | -10/Materials | Discovered new exit (range 15) 1069 | -10/Materials | Entered Mines 1084 | -10/Mines | Learned Materials emergency access door positions 1093 | -10/Mines | Deemed a non-threat by the Exiles lab entrance 1146 | -10/Mines | Found a hidden stash of uninstalled traps 1164 | -10/Mines | Discovered new exit (range 9) 1185 | -10/Mines | Learned Materials trap positions 1217 | -10/Mines | Learned location of Storage (-9) 1231 | -10/Mines | Assembled infested the area 1284 | -10/Mines | Core integrity fell below 50% 1297 | -10/Mines | Core integrity fell below 20% 1298 | -10/Mines | Destroyed by D-53 Grenadier with Mini Grenade Launcher Last Messages --------------- 01190_ K-01 Serf collects debris. 01217_ A derelict emerges from the shadows: "Are any of them following you? I'm here trying to lose some heat after our second raid on Storage failed. Whatever you do stay away from that place, they've tightened security following our previous successful raids." World map updated: -9/Storage. 01219_ MB-RMZ(g): "We scattered so the Unaware couldn't effectively use their advantage in numbers, and I suggest you do the same." 01219_ MB-RMZ(g) slips back into the shadows. 01231_ ALERT: Infestation in the mines, dispatching Demolisher response squad. 01256_ C-30 ARC bursts open, deploying its payload. 01256_ D-53 Grenadier unfolds itself. 01279_ Ion Engine destroyed. 01283_ Wheel destroyed. 01285_ Assault Rifle destroyed. 01286_ The unstable cave ceiling collapses. 01288_ Wheel destroyed. 01294_ Assault Rifle destroyed. 01295_ The unstable cave ceiling collapses. 01298_ Assault Rifle destroyed. 01298_ Core Shielding destroyed. Map ----- +----------------------------------------------------+ | #?????? ?????????????????????????????????????? | | ##??? ?????????????????????????????????????? | | ## ?????????????????????????????????????? | | ????????????????????????????????????? | | ??????????????????????????????????????? | | ## ???????????????????????????????????????? | | ##??????????????????????????????????????????????? | | ##???????????????????????????????????????????????? | | #????????????????????????????????????????????????? | | #????????????????????????????????????????????????? | | #????????????????????????????????????????????????? | | #????????????????????????????????????????????????? | | #????????????????????????????????????????????????? | | #????????????????????????????????????????????????? | | #????????????????????????????????????????????????? | | #???????????????????????########?????????????????? | | #??????????????????????## ##????????????????? | | ??????###??????????????# ##???????????????? | | ##???# ##?????????????# #???????????????? | | ##?# #?????????????# ##??????????????? | | ## #??????????#### #??????????????? | | #?????????## #??????????????? | | #??????????# #??????????????? | | ##??????????# # #??????????????? | | ## ####???????????## #???????????????? | | ## ##??????????????### @ # #??????????????? | | # ##???????????????# dd ###??????????????? | | ########???????# ##????????????????? | | # ## ##??????# ###?????????????????? | | " # # #??????### # ##???????????????????? | | %" ##???????## ###????????????????????? | | ## " ##???????# #??????????????????????? | | ?# ##??????# #??????????????????????? | | ?# #??????# #??????????????????????? | | # ######## #??????????????????????? | | #??????????????????????? | | # ## ####### #??????????????????????? | | ## ###### ##?????# #??????????????????????? | | ?## ##????####??????# #??????????????????????? | | ??## ##???????????????# #??????????????????????? | | ???#####????????????????# #######????????????????? | | ????????????????????????# ##???????????????? | | ????????????????????????### #???????????????? | | ??????????????????????????# #???????????????? | | ??????????????????????????# ##???????????????? | | ??????????????????????????## ##????????????????? | | ????????????????????????????####?????????????????? | | ?????????????????????????????????????????????????? | | | | | +----------------------------------------------------+ Best States ------------- Heat Dissipation 25 Energy Generation 10 Energy Capacity 250 Matter Stores 300 Matter Capacity 300 Sight Range 16 Terrain Scan Density 10 Core Shielding 20 Evasion (%) 41 Recoil Reduction 2 Item Schematics ----------------- None Robot Schematics ------------------ None Fabricated ------------ Nothing Alien Tech Used ----------------- None Achievements -------------- Brute Force Challenges ------------ None Game ------ Seed ArmoredSmallDissipator Manual? 0 Play Time 00:13:39 Cumulative 21.8 hours Start 2024.02.17 @ 19:12:54 End 2024.02.17 @ 19:25:50 Sessions 1 Manual Loads 0 Difficulty Rogue Special Mode None Game No. 16 Rogue 16 Adventurer 0 Explorer 0 Win Type - Total 1 Types 1/0/0/0/0/0/0/0/0 Lore% 21 Gallery% 21 Achievement% 23 Wizard Run 0 Options --------- ASCII 0 Keyboard 0 Movement Mouse Keybinds 0 Fullscreen 2 Font 18/SmallcapsGlow Map View 112x50 Tactical HUD 1 Map Filters NONE Filters NONE Steam 1 RUN: a0f17c53-567c-4c0c-bee6-ccfc2657f304